Workbook

Sheet 2022年1月
A1: 陆 丰 市 2022 年 1 月 财 政 预 算 收 入 完 成 情 况 表
A2: 2022-01-31 | L2: 单位：万元
B3: 年 度 | C3: 累 计 | D3: 占 年 | E3: 上 年 | F3: 比上年 | G3: 比上年 | H3: 本 月 | I3: 上 年 | J3: 比上年 | K3: 比上年
A4: 收 入 项 目 | B4: 预 算 | C4: 完 成 | D4: 预 算 | E4: 同 期 | F4: 同期增 | G4: 同期增 | H4: 完 成 | I4: 同 月 | J4: 同月增 | K4: 同月增 | L4: 备 注
B5: 数 | C5: 数 | D5: % | E5: 完 成 | F5: 减额 | G5: (减)% | H5: 数 | I5: 完 成 | J5: 减额 | K5: (减)%
A6: （一）税收收入 | C6: =SUM(C7:C20) -> 7,250 | E6: =SUM(E7:E20) -> 6,655 | F6: =C6-E6 -> 595 | G6: =F6/E6*100 -> 8.9 | H6: =SUM(H7:H20) -> 7,250 | I6: =SUM(I7:I20) -> 6655 | J6: =H6-I6 -> 595 | K6: =J6/I6*100 -> 8.9
A7: 1、增值税 | C7: 2,125 | E7: 1,767 | F7: =C7-E7 -> 358 | G7: =F7/E7*100 -> 20.3 | H7: 2,125 | I7: 1,767 | J7: =H7-I7 -> 358 | K7: =J7/I7*100 -> 20.3
A8: 2、企业所得税 | C8: 1,302 | E8: 2,575 | F8: =C8-E8 -> -1,273 | G8: -49.4 | H8: 1,302 | I8: 2,575 | J8: =H8-I8 -> -1,273 | K8: -49.4
A9: 3、个人所得税 | C9: 147 | E9: 225 | F9: -78 | G9: -34.7 | H9: 147 | I9: 225 | J9: -78 | K9: -34.7
A10: 4、资源税 | C10: 21 | E10: 11 | F10: 10 | G10: 90.9 | H10: 21 | I10: 11 | J10: 10
A11: 5、城市维护建设税 | C11: 499 | E11: 457 | F11: 42 | G11: 9.2 | H11: 499 | I11: 457 | J11: 42 | K11: 9.2
A12: 6、房产税 | C12: 545 | E12: 12 | F12: 533 | G12: 4,441.7 | H12: 545 | I12: 12 | J12: 533 | K12: 4,441.7
A13: 7、印花税 | C13: 189 | E13: 156 | F13: 33 | G13: 21.2 | H13: 189 | I13: 156 | J13: 33 | K13: 21.2
A14: 8、城镇土地使用税 | C14: 201 | E14: 21 | F14: 180 | G14: 857.1 | H14: 201 | I14: 21 | J14: 180 | K14: 857.1
A15: 9、土地增值税 | C15: 1,619 | E15: 502 | F15: 1,117 | G15: 222.5 | H15: 1,619 | I15: 502 | J15: 1,117 | K15: 222.5
A16: 10、车船使用税 | C16: 144 | E16: 126 | F16: 18 | G16: 14.3 | H16: 144 | I16: 126 | J16: 18 | K16: 14.3
A17: 11、环保税 | C17: 83 | E17: 31 | F17: 52 | G17: 167.7 | H17: 83 | I17: 31 | K17: 0.0
A18: 12、耕地占用税 | E18: 30 | F18: -30 | G18: -100.0 | I18: 30 | J18: -30 | K18: -100.0
A19: 13、契 税 | C19: 375 | E19: 742 | F19: -367 | G19: -49.5 | H19: 375 | I19: 742 | J19: -367 | K19: -49.5
A20: 14、其他税收收入 | F20: 0 | J20: 0
A21: （二）非税收入 | C21: =SUM(C22:C29) -> 2,625 | E21: =E22+E23+E24+E25+E26+E27+E28+E29 -> 2,039 | F21: 586 | G21: 28.7 | H21: =H22+H23+H24+H25+H26+H27+H28+H29 -> 2,625 | I21: =I22+I23+I24+I25+I26+I27+I28+I29 -> 2039 | J21: 586 | K21: =J21/I21*100 -> 28.7
A22: 1、专项收入 | C22: 373 | E22: 311 | F22: =C22-E22 -> 62 | G22: 19.9 | H22: 373 | I22: 311 | J22: 62 | K22: =J22/I22*100 -> 19.9
A23: 2、行政事业性收费收入 | C23: 231 | E23: 16 | F23: 215 | G23: 1,343.8 | H23: 231 | I23: 16 | J23: =H23-I23 -> 215 | K23: 1,343.8
A24: 3、罚没收入 | C24: 177 | E24: 61 | F24: 116 | G24: 190.2 | H24: 177 | I24: 61 | J24: 116 | K24: 190.2
A25: 4、国有资源（资产）有偿使用收入 | C25: 1,587 | E25: 1,637 | F25: -50 | G25: -3.1 | H25: 1,587 | I25: 1,637 | J25: -50 | K25: -3.1
A26: 5、政府住房基金收入 | F26: 0 | J26: 0
A27: 6、捐赠收入 | F27: 0 | J27: 0
A28: 7、其他收入 | C28: 257 | E28: 14 | F28: 243 | G28: 1,735.7 | H28: 257 | I28: 14 | J28: 243 | K28: 1,735.7
A29: 8、国有资本经营收入 | F29: 0 | J29: 0
A30: 一、一般公共预算收入 | C30: =C6+C21 -> 9,875 | E30: =E6+E21 -> 8,694 | F30: 1,181 | G30: =F30/E30*100 -> 13.6 | H30: =H6+H21 -> 9,875 | I30: =I6+I21 -> 8694 | J30: 1,181 | K30: 13.6
A31: 二、政府性基金预算收入小计 | C31: 1,977 | E31: 599 | F31: 1,378 | G31: =F31/E31*100 -> 230.1 | H31: 1,977 | I31: 599 | J31: 1,378 | K31: 230.1
A32: 其中：国有土地使用权出让收入 | C32: 1,847 | E32: 490 | F32: 1,357 | G32: =F32/E32*100 -> 276.9 | H32: 1,847 | I32: 490 | J32: 1,357 | K32: 276.9
A33: 三、国有资本经营收入小计 | C33: 20 | H33: 20 | J33: 20
A34: 收入合计 | C34: =C30+C31+C33 -> 11,872 | E34: =E30+E31+E33 -> 9,293 | F34: =C34-E34 -> 2,579 | G34: =F34/E34*100 -> 27.8 | H34: =H30+H31+H33 -> 11,872 | I34: =I30+I31+I33 -> 9293 | J34: 2,579 | K34: 27.8
A35: 注：2022年度预算草案还未通过人大决议，故本表没有反映年度预算数和占比数。 | L35: 陆丰市财政局国库股

Sheet 2022年2月
A1: 陆 丰 市 2022 年 2 月 财 政 预 算 收 入 完 成 情 况 表
A2: 2022-02-28 | L2: 单位：万元
B3: 年 度 | C3: 累 计 | D3: 占 年 | E3: 上 年 | F3: 比上年 | G3: 比上年 | H3: 本 月 | I3: 上 年 | J3: 比上年 | K3: 比上年
A4: 收 入 项 目 | B4: 预 算 | C4: 完 成 | D4: 预 算 | E4: 同 期 | F4: 同期增 | G4: 同期增 | H4: 完 成 | I4: 同 月 | J4: 同月增 | K4: 同月增 | L4: 备 注
B5: 数 | C5: 数 | D5: % | E5: 完 成 | F5: 减额 | G5: (减)% | H5: 数 | I5: 完 成 | J5: 减额 | K5: (减)%
A6: （一）税收收入 | C6: =SUM(C7:C20) -> 9,858 | E6: =SUM(E7:E20) -> 9,607 | F6: =C6-E6 -> 251 | G6: =F6/E6*100 -> 2.6 | H6: =SUM(H7:H20) -> 2,608 | I6: =SUM(I7:I20) -> 2952 | J6: =H6-I6 -> -344 | K6: =J6/I6*100 -> -11.7
A7: 1、增值税 | C7: 3,215 | E7: 2,564 | F7: =C7-E7 -> 651 | G7: =F7/E7*100 -> 25.4 | H7: 1,090 | I7: 797 | J7: =H7-I7 -> 293 | K7: =J7/I7*100 -> 36.8
A8: 2、企业所得税 | C8: 1,316 | E8: 2,598 | F8: =C8-E8 -> -1,282 | G8: -49.3 | H8: 14 | I8: 23 | J8: =H8-I8 -> -9 | K8: -39.1
A9: 3、个人所得税 | C9: 224 | E9: 308 | F9: -84 | G9: -27.3 | H9: 77 | I9: 83 | J9: -6 | K9: -7.2
A10: 4、资源税 | C10: 27 | E10: 18 | F10: 9 | G10: 50.0 | H10: 6 | I10: 7 | J10: -1 | K10: -14.3
A11: 5、城市维护建设税 | C11: 1,077 | E11: 988 | F11: 89 | G11: 9.0 | H11: 578 | I11: 531 | J11: 47 | K11: 8.9
A12: 6、房产税 | C12: 560 | E12: 67 | F12: 493 | G12: 735.8 | H12: 15 | I12: 55 | J12: -40 | K12: -72.7
A13: 7、印花税 | C13: 306 | E13: 215 | F13: 91 | G13: 42.3 | H13: 117 | I13: 59 | J13: 58 | K13: 98.3
A14: 8、城镇土地使用税 | C14: 207 | E14: 74 | F14: 133 | G14: 179.7 | H14: 6 | I14: 53 | J14: -47 | K14: -88.7
A15: 9、土地增值税 | C15: 1,845 | E15: 815 | F15: 1,030 | G15: 126.4 | H15: 226 | I15: 313 | J15: -87 | K15: -27.8
A16: 10、车船使用税 | C16: 339 | E16: 296 | F16: 43 | G16: 14.5 | H16: 195 | I16: 170 | J16: 25 | K16: 14.7
A17: 11、环保税 | C17: 83 | E17: 31 | F17: 52 | G17: 167.7 | J17: 0
A18: 12、耕地占用税 | E18: 504 | F18: -504 | G18: -100.0 | I18: 474 | J18: -474 | K18: -100.0
A19: 13、契 税 | C19: 659 | E19: 1,129 | F19: -470 | G19: -41.6 | H19: 284 | I19: 387 | J19: -103 | K19: -26.6
A20: 14、其他税收收入
A21: （二）非税收入 | C21: =SUM(C22:C29) -> 6,138 | E21: =E22+E23+E24+E25+E26+E27+E28+E29 -> 4,688 | F21: =C21-E21 -> 1,450 | G21: 30.9 | H21: =H22+H23+H24+H25+H26+H27+H28+H29 -> 3,513 | I21: =I22+I23+I24+I25+I26+I27+I28+I29 -> 2649 | J21: =H21-I21 -> 864 | K21: =J21/I21*100 -> 32.6
A22: 1、专项收入 | C22: 778 | E22: 650 | F22: =C22-E22 -> 128 | G22: 19.7 | H22: 405 | I22: 339 | J22: =H22-I22 -> 66 | K22: =J22/I22*100 -> 19.5
A23: 2、行政事业性收费收入 | C23: 1,154 | E23: 1,473 | F23: -319 | G23: -21.7 | H23: 923 | I23: 1,457 | J23: =H23-I23 -> -534 | K23: -36.7
A24: 3、罚没收入 | C24: 1,366 | E24: 574 | F24: 792 | G24: 138.0 | H24: 1,189 | I24: 513 | J24: 676 | K24: 131.8
A25: 4、国有资源（资产）有偿使用收入 | C25: 2,378 | E25: 1,977 | F25: 401 | G25: 20.3 | H25: 791 | I25: 340 | J25: 451 | K25: 132.6
A26: 5、政府住房基金收入
A27: 6、捐赠收入 | C27: 205 | F27: 205 | H27: 205
A28: 7、其他收入 | C28: 257 | E28: 14 | F28: 243 | G28: 1,735.7 | J28: 0
A29: 8、国有资本经营收入
A30: 一、一般公共预算收入 | C30: =C6+C21 -> 15,996 | E30: =E6+E21 -> 14,295 | F30: =C30-E30 -> 1,701 | G30: =F30/E30*100 -> 11.9 | H30: =H6+H21 -> 6,121 | I30: =I6+I21 -> 5601 | J30: =H30-I30 -> 520 | K30: 9.3
A31: 二、政府性基金预算收入小计 | C31: 3,047 | E31: 35,706 | F31: =C31-E31 -> -32,659 | G31: =F31/E31*100 -> -91.5 | H31: 1,070 | I31: 35107 | J31: =H31-I31 -> -34,037 | K31: -97.0
A32: 其中：国有土地使用权出让收入 | C32: 2,350 | E32: 35,091 | F32: =C32-E32 -> -32,741 | G32: =F32/E32*100 -> -93.3 | H32: 503 | I32: 34601 | J32: =H32-I32 -> -34,098 | K32: -98.5
A33: 三、国有资本经营收入小计 | C33: 20 | J33: =H33-I33 -> 0
A34: 收入合计 | C34: =C30+C31+C33 -> 19,063 | E34: =E30+E31+E33 -> 50,001 | F34: =C34-E34 -> -30,938 | G34: =F34/E34*100 -> -61.9 | H34: =H30+H31+H33 -> 7,191 | I34: =I30+I31+I33 -> 40708 | J34: =H34-I34 -> -33,517 | K34: -82.3
A35: 注：2022年度预算草案还未通过人大决议，故本表没有反映年度预算数和占比数。 | L35: 陆丰市财政局国库股

Sheet 2022年3月
A1: 陆 丰 市 2022 年 3 月 财 政 预 算 收 入 完 成 情 况 表
A2: 2022-03-31 | L2: 单位：万元
B3: 年 度 | C3: 累 计 | D3: 占 年 | E3: 上 年 | F3: 比上年 | G3: 比上年 | H3: 本 月 | I3: 上 年 | J3: 比上年 | K3: 比上年
A4: 收 入 项 目 | B4: 预 算 | C4: 完 成 | D4: 预 算 | E4: 同 期 | F4: 同期增 | G4: 同期增 | H4: 完 成 | I4: 同 月 | J4: 同月增 | K4: 同月增 | L4: 备 注
B5: 数 | C5: 数 | D5: % | E5: 完 成 | F5: 减额 | G5: (减)% | H5: 数 | I5: 完 成 | J5: 减额 | K5: (减)%
A6: （一）税收收入 | C6: =SUM(C7:C20) -> 15,845 | E6: =SUM(E7:E20) -> 15,584 | F6: =C6-E6 -> 261 | G6: =F6/E6*100 -> 1.7 | H6: =SUM(H7:H20) -> 5,987 | I6: =SUM(I7:I20) -> 5977 | J6: =H6-I6 -> 10 | K6: =J6/I6*100 -> 0.2
A7: 1、增值税 | C7: 4,073 | E7: 3,791 | F7: =C7-E7 -> 282 | G7: =F7/E7*100 -> 7.4 | H7: =C7-'2022年2月'!C7 -> 858 | I7: 1,227 | J7: =H7-I7 -> -369 | K7: =J7/I7*100 -> -30.1
A8: 2、企业所得税 | C8: 1,346 | E8: 2,601 | F8: =C8-E8 -> -1,255 | G8: -48.3 | H8: =C8-'2022年2月'!C8 -> 30 | I8: 3 | J8: =H8-I8 -> 27 | K8: 900.0
A9: 3、个人所得税 | C9: 114 | E9: 360 | F9: -246 | G9: -68.3 | H9: =C9-'2022年2月'!C9 -> -110 | I9: 52 | J9: -162 | K9: -311.5
A10: 4、资源税 | C10: 42 | E10: 26 | F10: 16 | G10: 61.5 | H10: =C10-'2022年2月'!C10 -> 15 | I10: 8 | J10: 7 | K10: 87.5
A11: 5、城市维护建设税 | C11: 1,393 | E11: 1,427 | F11: -34 | G11: -2.4 | H11: =C11-'2022年2月'!C11 -> 316 | I11: 439 | J11: -123 | K11: -28.0
A12: 6、房产税 | C12: 1,369 | E12: 141 | F12: 1,228 | G12: 870.9 | H12: =C12-'2022年2月'!C12 -> 809 | I12: 74 | J12: 735 | K12: 993.2
A13: 7、印花税 | C13: 464 | E13: 276 | F13: 188 | G13: 68.1 | H13: =C13-'2022年2月'!C13 -> 158 | I13: 61 | J13: 97 | K13: 159.0
A14: 8、城镇土地使用税 | C14: 432 | E14: 117 | F14: 315 | G14: 269.2 | H14: =C14-'2022年2月'!C14 -> 225 | I14: 43 | J14: 182 | K14: 423.3
A15: 9、土地增值税 | C15: 2,928 | E15: 1,664 | F15: 1,264 | G15: 76.0 | H15: =C15-'2022年2月'!C15 -> 1,083 | I15: 849 | J15: 234 | K15: 27.6
A16: 10、车船使用税 | C16: 434 | E16: 379 | F16: 55 | G16: 14.5 | H16: =C16-'2022年2月'!C16 -> 95 | I16: 83 | J16: 12 | K16: 14.5
A17: 11、环保税 | C17: 83 | E17: 34 | F17: 49 | G17: 144.1 | H17: =C17-'2022年2月'!C17 -> 0 | I17: 3 | J17: -3 | K17: -100.0
A18: 12、耕地占用税 | C18: 1,796 | E18: 1,648 | F18: 148 | G18: 9.0 | H18: =C18-'2022年2月'!C18 -> 1,796 | I18: 1,144 | J18: 652 | K18: 57.0
A19: 13、契 税 | C19: 1,371 | E19: 3,120 | F19: -1,749 | G19: -56.1 | H19: =C19-'2022年2月'!C19 -> 712 | I19: 1,991 | J19: -1,279 | K19: -64.2
A20: 14、其他税收收入 | H20: =C20-'2022年2月'!C20 -> 0
A21: （二）非税收入 | C21: =SUM(C22:C29) -> 13,776 | E21: =E22+E23+E24+E25+E26+E27+E28+E29 -> 9,612 | F21: =C21-E21 -> 4,164 | G21: 43.3 | H21: =H22+H23+H24+H25+H26+H27+H28+H29 -> 7,638 | I21: =I22+I23+I24+I25+I26+I27+I28+I29 -> 4924 | J21: =H21-I21 -> 2,714 | K21: =J21/I21*100 -> 55.1
A22: 1、专项收入 | C22: 995 | E22: 947 | F22: =C22-E22 -> 48 | G22: 5.1 | H22: =C22-'2022年2月'!C22 -> 217 | I22: 297 | J22: =H22-I22 -> -80 | K22: =J22/I22*100 -> -26.9
A23: 2、行政事业性收费收入 | C23: 1,363 | E23: 3,054 | F23: -1,691 | G23: -55.4 | H23: =C23-'2022年2月'!C23 -> 209 | I23: 1,581 | J23: =H23-I23 -> -1,372 | K23: -86.8
A24: 3、罚没收入 | C24: 7,741 | E24: 1,138 | F24: 6,603 | G24: 580.2 | H24: =C24-'2022年2月'!C24 -> 6,375 | I24: 564 | J24: 5,811 | K24: 1,030.3
A25: 4、国有资源（资产）有偿使用收入 | C25: 2,605 | E25: 3,735 | F25: -1,130 | G25: -30.3 | H25: =C25-'2022年2月'!C25 -> 227 | I25: 1,758 | J25: -1,531 | K25: -87.1
A26: 5、政府住房基金收入 | C26: 106 | E26: 378 | F26: -272 | G26: -72.0 | H26: =C26-'2022年2月'!C26 -> 106 | I26: 378 | J26: -272 | K26: -72.0
A27: 6、捐赠收入 | C27: 603 | E27: 360 | F27: 243 | G27: 67.5 | H27: =C27-'2022年2月'!C27 -> 398 | I27: 360 | J27: 38 | K27: 10.6
A28: 7、其他收入 | C28: 363 | F28: 363 | H28: =C28-'2022年2月'!C28 -> 106 | I28: -14 | J28: 120 | K28: -857.1
A29: 8、国有资本经营收入 | H29: =C29-'2022年2月'!C29 -> 0
A30: 一、一般公共预算收入 | C30: =C6+C21 -> 29,621 | E30: =E6+E21 -> 25,196 | F30: =C30-E30 -> 4,425 | G30: =F30/E30*100 -> 17.6 | H30: =H6+H21 -> 13,625 | I30: =I6+I21 -> 10901 | J30: =H30-I30 -> 2,724 | K30: 25.0
A31: 二、政府性基金预算收入小计 | C31: 4,329 | E31: 52,250 | F31: =C31-E31 -> -47,921 | G31: =F31/E31*100 -> -91.7 | H31: =C31-'2022年2月'!C31 -> 1,282 | I31: 16544 | J31: =H31-I31 -> -15,262 | K31: -92.3
A32: 其中：国有土地使用权出让收入 | C32: 3,537 | E32: 51,571 | F32: =C32-E32 -> -48,034 | G32: =F32/E32*100 -> -93.1 | H32: =C32-'2022年2月'!C32 -> 1,187 | I32: 16480 | J32: =H32-I32 -> -15,293 | K32: -92.8
A33: 三、国有资本经营收入小计 | C33: 19 | H33: =C33-'2022年2月'!C33 -> -1 | J33: =H33-I33 -> -1
A34: 收入合计 | C34: =C30+C31+C33 -> 33,969 | E34: =E30+E31+E33 -> 77,446 | F34: =C34-E34 -> -43,477 | G34: =F34/E34*100 -> -56.1 | H34: =H30+H31+H33 -> 14,906 | I34: =I30+I31+I33 -> 27445 | J34: =H34-I34 -> -12,539 | K34: -45.7
A35: 注：2022年度预算草案还未通过人大决议，故本表没有反映年度预算数和占比数。 | L35: 陆丰市财政局国库股

Sheet 2022年4月
A1: 陆 丰 市 2022 年 4 月 财 政 预 算 收 入 完 成 情 况 表
A2: 2022-04-30 | L2: 单位：万元
B3: 年 度 | C3: 累 计 | D3: 占 年 | E3: 上 年 | F3: 比上年 | G3: 比上年 | H3: 本 月 | I3: 上 年 | J3: 比上年 | K3: 比上年
A4: 收 入 项 目 | B4: 预 算 | C4: 完 成 | D4: 预 算 | E4: 同 期 | F4: 同期增 | G4: 同期增 | H4: 完 成 | I4: 同 月 | J4: 同月增 | K4: 同月增 | L4: 备 注
B5: 数 | C5: 数 | D5: % | E5: 完 成 | F5: 减额 | G5: (减)% | H5: 数 | I5: 完 成 | J5: 减额 | K5: (减)%
A6: （一）税收收入 | C6: =SUM(C7:C20) -> 19,344 | E6: =SUM(E7:E20) -> 19,929 | F6: =C6-E6 -> -585 | G6: =F6/E6*100 -> -2.9 | H6: =SUM(H7:H20) -> 3,499 | I6: =SUM(I7:I20) -> 4345 | J6: =H6-I6 -> -846 | K6: =J6/I6*100 -> -19.5
A7: 1、增值税 | C7: 5,255 | E7: 4,973 | F7: =C7-E7 -> 282 | G7: =F7/E7*100 -> 5.7 | H7: 1,182 | I7: 1,182 | J7: =H7-I7 -> 0 | K7: =J7/I7*100 -> 0.0
A8: 2、企业所得税 | C8: 2,109 | E8: 3,800 | F8: =C8-E8 -> -1,691 | G8: -44.5 | H8: 763 | I8: 1,199 | J8: =H8-I8 -> -436 | K8: -36.4
A9: 3、个人所得税 | C9: 143 | E9: 447 | F9: -304 | G9: -68.0 | H9: 29 | I9: 87 | J9: -58 | K9: -66.7
A10: 4、资源税 | C10: 44 | E10: 46 | F10: -2 | G10: -4.3 | H10: 2 | I10: 20 | J10: -18 | K10: -90.0
A11: 5、城市维护建设税 | C11: 1,768 | E11: 1,852 | F11: -84 | G11: -4.5 | H11: 375 | I11: 425 | J11: -50 | K11: -11.8
A12: 6、房产税 | C12: 1,428 | E12: 178 | F12: 1,250 | G12: 702.2 | H12: 59 | I12: 37 | J12: 22 | K12: 59.5
A13: 7、印花税 | C13: 562 | E13: 392 | F13: 170 | G13: 43.4 | H13: 98 | I13: 116 | J13: -18 | K13: -15.5
A14: 8、城镇土地使用税 | C14: 456 | E14: 142 | F14: 314 | G14: 221.1 | H14: 24 | I14: 25 | J14: -1 | K14: -4.0
A15: 9、土地增值税 | C15: 3,093 | E15: 2,168 | F15: 925 | G15: 42.7 | H15: 165 | I15: 504 | J15: -339 | K15: -67.3
A16: 10、车船使用税 | C16: 584 | E16: 504 | F16: 80 | G16: 15.9 | H16: 150 | I16: 125 | J16: 25 | K16: 20.0
A17: 11、环保税 | C17: 128 | E17: 64 | F17: 64 | G17: 100.0 | H17: =C17-'2022年2月'!C17 -> 45 | I17: 30 | J17: 15 | K17: 50.0
A18: 12、耕地占用税 | C18: 1,796 | E18: 1,666 | F18: 130 | G18: 7.8 | H18: 0 | I18: 18 | J18: -18 | K18: -100.0
A19: 13、契 税 | C19: 1,978 | E19: 3,696 | F19: -1,718 | G19: -46.5 | H19: 607 | I19: 576 | J19: 31 | K19: 5.4
A20: 14、其他税收收入 | E20: 1 | H20: =C20-'2022年2月'!C20 -> 0 | I20: 1
A21: （二）非税收入 | C21: =SUM(C22:C29) -> 16,896 | E21: =E22+E23+E24+E25+E26+E27+E28+E29 -> 12,004 | F21: =C21-E21 -> 4,892 | G21: 40.8 | H21: =H22+H23+H24+H25+H26+H27+H28+H29 -> 3,120 | I21: =I22+I23+I24+I25+I26+I27+I28+I29 -> 2392 | J21: =H21-I21 -> 728 | K21: =J21/I21*100 -> 30.4
A22: 1、专项收入 | C22: 1,251 | E22: 1,228 | F22: =C22-E22 -> 23 | G22: 1.9 | H22: 256 | I22: 281 | J22: =H22-I22 -> -25 | K22: =J22/I22*100 -> -8.9
A23: 2、行政事业性收费收入 | C23: 1,488 | E23: 4,989 | F23: -3,501 | G23: -70.2 | H23: 125 | I23: 1,935 | J23: =H23-I23 -> -1,810 | K23: -93.5
A24: 3、罚没收入 | C24: 9,227 | E24: 1,193 | F24: 8,034 | G24: 673.4 | H24: 1,486 | I24: 55 | J24: 1,431 | K24: 2,601.8
A25: 4、国有资源（资产）有偿使用收入 | C25: 2,608 | E25: 3,809 | F25: -1,201 | G25: -31.5 | H25: 3 | I25: 74 | J25: -71 | K25: -95.9
A26: 5、政府住房基金收入 | C26: 106 | F26: 106 | H26: 0 | J26: 0
A27: 6、捐赠收入 | C27: 603 | E27: 360 | F27: 243 | G27: 67.5 | H27: 0 | J27: 0
A28: 7、其他收入 | C28: 1,613 | E28: 425 | F28: 1,188 | G28: 279.5 | H28: 1,250 | I28: 47 | J28: 1,203 | K28: 2,559.6
A29: 8、国有资本经营收入 | H29: =C29-'2022年2月'!C29 -> 0
A30: 一、一般公共预算收入 | C30: =C6+C21 -> 36,240 | E30: =E6+E21 -> 31,933 | F30: =C30-E30 -> 4,307 | G30: =F30/E30*100 -> 13.5 | H30: =H6+H21 -> 6,619 | I30: =I6+I21 -> 6737 | J30: =H30-I30 -> -118 | K30: -1.8
A31: 二、政府性基金预算收入小计 | C31: 6,272 | E31: 59,684 | F31: =C31-E31 -> -53,412 | G31: =F31/E31*100 -> -89.5 | H31: =C31-'2022年3月 '!C31 -> 1,943 | I31: 7434 | J31: =H31-I31 -> -5,491 | K31: -73.9
A32: 其中：国有土地使用权出让收入 | C32: 5,007 | E32: 58,909 | F32: =C32-E32 -> -53,902 | G32: =F32/E32*100 -> -91.5 | H32: =C32-'2022年3月 '!C32 -> 1,470 | I32: 7338 | J32: =H32-I32 -> -5,868 | K32: -80.0
A33: 三、国有资本经营收入小计 | C33: 19 | J33: =H33-I33 -> 0
A34: 收入合计 | C34: =C30+C31+C33 -> 42,531 | E34: =E30+E31+E33 -> 91,617 | F34: =C34-E34 -> -49,086 | G34: =F34/E34*100 -> -53.6 | H34: =H30+H31+H33 -> 8,562 | I34: =I30+I31+I33 -> 14171 | J34: =H34-I34 -> -5,609 | K34: -39.6
A35: 注：2022年度预算草案还未通过人大决议，故本表没有反映年度预算数和占比数。 | L35: 陆丰市财政局国库股

Sheet 2022年5月
A1: 陆 丰 市 2022 年 5 月 财 政 预 算 收 入 完 成 情 况 表
A2: 2022-05-31 | L2: 单位：万元
B3: 年 度 | C3: 累 计 | D3: 占 年 | E3: 上 年 | F3: 比上年 | G3: 比上年 | H3: 本 月 | I3: 上 年 | J3: 比上年 | K3: 比上年
A4: 收 入 项 目 | B4: 预 算 | C4: 完 成 | D4: 预 算 | E4: 同 期 | F4: 同期增 | G4: 同期增 | H4: 完 成 | I4: 同 月 | J4: 同月增 | K4: 同月增 | L4: 备 注
B5: 数 | C5: 数 | D5: % | E5: 完 成 | F5: 减额 | G5: (减)% | H5: 数 | I5: 完 成 | J5: 减额 | K5: (减)%
A6: （一）税收收入 | C6: =SUM(C7:C20) -> 21,853 | E6: =SUM(E7:E20) -> 23,341 | F6: =C6-E6 -> -1,488 | G6: =F6/E6*100 -> -6.4 | H6: =SUM(H7:H20) -> 2,509 | I6: 3,412 | J6: =H6-I6 -> -903 | K6: =J6/I6*100 -> -26.5
A7: 1、增值税 | C7: 6,156 | E7: 5,861 | F7: =C7-E7 -> 295 | G7: =F7/E7*100 -> 5.0 | H7: 901 | I7: 888 | J7: =H7-I7 -> 13 | K7: =J7/I7*100 -> 1.5
A8: 2、企业所得税 | C8: 2,420 | E8: 4,392 | F8: =C8-E8 -> -1,972 | G8: -44.9 | H8: 311 | I8: 592 | J8: =H8-I8 -> -281 | K8: -47.5
A9: 3、个人所得税 | C9: 190 | E9: 549 | F9: -359 | G9: -65.4 | H9: 47 | I9: 102 | J9: -55 | K9: -53.9
A10: 4、资源税 | C10: 45 | E10: 51 | F10: -6 | G10: -11.8 | H10: 1 | I10: 5 | J10: -4 | K10: -80.0
A11: 5、城市维护建设税 | C11: 2,070 | E11: 2,180 | F11: -110 | G11: -5.0 | H11: 302 | I11: 328 | J11: -26 | K11: -7.9
A12: 6、房产税 | C12: 1,466 | E12: 190 | F12: 1,276 | G12: 671.6 | H12: 38 | I12: 12 | J12: 26 | K12: 216.7
A13: 7、印花税 | C13: 702 | E13: 464 | F13: 238 | G13: 51.3 | H13: 140 | I13: 72 | J13: 68 | K13: 94.4
A14: 8、城镇土地使用税 | C14: 472 | E14: 189 | F14: 283 | G14: 149.7 | H14: 16 | I14: 47 | J14: -31 | K14: -66.0
A15: 9、土地增值税 | C15: 3,310 | E15: 2,527 | F15: 783 | G15: 31.0 | H15: 217 | I15: 359 | J15: -142 | K15: -39.6
A16: 10、车船使用税 | C16: 721 | E16: 620 | F16: 101 | G16: 16.3 | H16: 137 | I16: 116 | J16: 21 | K16: 18.1
A17: 11、环保税 | C17: 132 | E17: 64 | F17: 68 | G17: 106.3 | H17: 4 | J17: 4
A18: 12、耕地占用税 | C18: 1,796 | E18: 1,666 | F18: 130 | G18: 7.8 | H18: 0 | J18: 0
A19: 13、契 税 | C19: 2,373 | E19: 4,587 | F19: -2,214 | G19: -48.3 | H19: 395 | I19: 891 | J19: -496 | K19: -55.7
A20: 14、其他税收收入 | E20: 1
A21: （二）非税收入 | C21: =SUM(C22:C29) -> 21,265 | E21: =E22+E23+E24+E25+E26+E27+E28+E29 -> 17,349 | F21: =C21-E21 -> 3,916 | G21: 22.6 | H21: =H22+H23+H24+H25+H26+H27+H28+H29 -> 4,369 | I21: =I22+I23+I24+I25+I26+I27+I28+I29 -> 5345 | J21: =H21-I21 -> -976 | K21: =J21/I21*100 -> -18.3
A22: 1、专项收入 | C22: 1,462 | E22: 2,063 | F22: =C22-E22 -> -601 | G22: -29.1 | H22: 211 | I22: 835 | J22: =H22-I22 -> -624 | K22: =J22/I22*100 -> -74.7
A23: 2、行政事业性收费收入 | C23: 3,265 | E23: 5,325 | F23: -2,060 | G23: -38.7 | H23: 1,777 | I23: 336 | J23: =H23-I23 -> 1,441 | K23: 428.9
A24: 3、罚没收入 | C24: 9,483 | E24: 1,663 | F24: 7,820 | G24: 470.2 | H24: 256 | I24: 470 | J24: -214 | K24: -45.5
A25: 4、国有资源（资产）有偿使用收入 | C25: 4,425 | E25: 4,303 | F25: 122 | G25: 2.8 | H25: 1,817 | I25: 494 | J25: 1,323 | K25: 267.8
A26: 5、政府住房基金收入 | C26: 106 | E26: 290 | F26: -184 | G26: -63.4 | I26: 290 | J26: -290 | K26: -100.0
A27: 6、捐赠收入 | C27: 608 | E27: 2,505 | F27: -1,897 | G27: -75.7 | H27: 5 | I27: 2,145 | J27: -2,140 | K27: -99.8
A28: 7、其他收入 | C28: 1,916 | E28: 1,200 | F28: 716 | G28: 59.7 | H28: 303 | I28: 775 | J28: -472 | K28: -60.9
A29: 8、国有资本经营收入
A30: 一、一般公共预算收入 | C30: =C6+C21 -> 43,118 | E30: =E6+E21 -> 40,690 | F30: =C30-E30 -> 2,428 | G30: =F30/E30*100 -> 6.0 | H30: =H6+H21 -> 6,878 | I30: =I6+I21 -> 8757 | J30: =H30-I30 -> -1,879 | K30: -21.5
A31: 二、政府性基金预算收入小计 | C31: 7,586 | E31: 58,777 | F31: =C31-E31 -> -51,191 | G31: =F31/E31*100 -> -87.1 | H31: 1,314 | I31: -907 | J31: =H31-I31 -> 2,221 | K31: -244.9
A32: 其中：国有土地使用权出让收入 | C32: 5,903 | E32: 57,908 | F32: =C32-E32 -> -52,005 | G32: =F32/E32*100 -> -89.8 | H32: 896 | I32: -1,001 | J32: =H32-I32 -> 1,897 | K32: -189.5
A33: 三、国有资本经营收入小计 | C33: 320 | H33: 301 | J33: =H33-I33 -> 301
A34: 收入合计 | C34: =C30+C31+C33 -> 51,024 | E34: =E30+E31+E33 -> 99,467 | F34: =C34-E34 -> -48,443 | G34: =F34/E34*100 -> -48.7 | H34: =H30+H31+H33 -> 8,493 | I34: =I30+I31+I33 -> 7850 | J34: =H34-I34 -> 643 | K34: 8.2
A35: 注：2022年度预算草案还未通过人大决议，故本表没有反映年度预算数和占比数。 | L35: 陆丰市财政局国库股

Sheet 2022年6月
A1: 陆 丰 市 2022 年 6 月 财 政 预 算 收 入 完 成 情 况 表
A2: 2022-06-30 | L2: 单位：万元
B3: 年 度 | C3: 累 计 | D3: 占 年 | E3: 上 年 | F3: 比上年 | G3: 比上年 | H3: 本 月 | I3: 上 年 | J3: 比上年 | K3: 比上年
A4: 收 入 项 目 | B4: 预 算 | C4: 完 成 | D4: 预 算 | E4: 同 期 | F4: 同期增 | G4: 同期增 | H4: 完 成 | I4: 同 月 | J4: 同月增 | K4: 同月增 | L4: 备 注
B5: 数 | C5: 数 | D5: % | E5: 完 成 | F5: 减额 | G5: (减)% | H5: 数 | I5: 完 成 | J5: 减额 | K5: (减)%
A6: （一）税收收入 | B6: =SUM(B7:B20) -> 62,550 | C6: =SUM(C7:C20) -> 25,001 | D6: =C6/B6*100 -> 40.0 | E6: =SUM(E7:E20) -> 29,276 | F6: =C6-E6 -> -4,275 | G6: =F6/E6*100 -> -14.6 | H6: =SUM(H7:H20) -> 3,148 | I6: =SUM(I7:I20) -> 5,935 | J6: =H6-I6 -> -2,787 | K6: =J6/I6*100 -> -47.0
A7: 1、增值税 | B7: 15,532 | C7: 7,260 | D7: 46.7 | E7: 7,056 | F7: 204 | G7: 2.9 | H7: 1,104 | I7: 1,195 | J7: -91 | K7: -7.6
A8: 2、企业所得税 | B8: 7,150 | C8: 2,498 | D8: 34.9 | E8: 4,651 | F8: -2,153 | G8: -46.3 | H8: 78 | I8: 259 | J8: -181 | K8: -69.9
A9: 3、个人所得税 | B9: 1,403 | C9: 282 | D9: 20.1 | E9: 621 | F9: -339 | G9: -54.6 | H9: 92 | I9: 72 | J9: 20 | K9: 27.8
A10: 4、资源税 | B10: 1,408 | C10: 49 | D10: 3.5 | E10: 615 | F10: -566 | G10: -92.0 | H10: 4 | I10: 564 | J10: -560 | K10: -99.3
A11: 5、城市维护建设税 | B11: 5,715 | C11: 2,358 | D11: 41.3 | E11: 2,537 | F11: -179 | G11: -7.1 | H11: 288 | I11: 357 | J11: -69 | K11: -19.3
A12: 6、房产税 | B12: 1,839 | C12: 1,504 | D12: 81.8 | E12: 213 | F12: 1,291 | G12: 606.1 | H12: 38 | I12: 23 | J12: 15 | K12: 65.2
A13: 7、印花税 | B13: 1,785 | C13: 1,212 | D13: 67.9 | E13: 786 | F13: 426 | G13: 54.2 | H13: 510 | I13: 322 | J13: 188 | K13: 58.4
A14: 8、城镇土地使用税 | B14: 1,905 | C14: 549 | D14: 28.8 | E14: 192 | F14: 357 | G14: 185.9 | H14: 77 | I14: 3 | J14: 74 | K14: 2,466.7
A15: 9、土地增值税 | B15: 7,005 | C15: 3,483 | D15: 49.7 | E15: 2,932 | F15: 551 | G15: 18.8 | H15: 173 | I15: 405 | J15: -232 | K15: -57.3
A16: 10、车船使用税 | B16: 1,714 | C16: 848 | D16: 49.5 | E16: 729 | F16: 119 | G16: 16.3 | H16: 127 | I16: 109 | J16: 18 | K16: 16.5
A17: 11、环保税 | B17: 135 | C17: 132 | D17: 97.8 | E17: 64 | F17: 68 | G17: 106.3 | J17: 0
A18: 12、耕地占用税 | B18: 5,752 | C18: 1,947 | D18: 33.8 | E18: 3,107 | F18: -1,160 | G18: -37.3 | H18: 151 | I18: 1,441 | J18: -1,290 | K18: =J18/I18*100 -> -89.5
A19: 13、契 税 | B19: 11,206 | C19: 2,879 | D19: 25.7 | E19: 5,772 | F19: -2,893 | G19: -50.1 | H19: 506 | I19: 1,185 | J19: -679 | K19: =J19/I19*100 -> -57.3
A20: 14、其他税收收入 | B20: 1 | D20: 0.0 | E20: 1 | F20: -1 | G20: -100.0
A21: （二）非税收入 | B21: =SUM(B22:B29) -> 51,425 | C21: =SUM(C22:C29) -> 35,254 | D21: 68.6 | E21: =E22+E23+E24+E25+E26+E27+E28+E29 -> 26,523 | F21: 8,731 | G21: 32.9 | H21: =H22+H23+H24+H25+H26+H27+H28+H29 -> 13,989 | I21: =I22+I23+I24+I25+I26+I27+I28+I29 -> 9174 | J21: =H21-I21 -> 4,815 | K21: =J21/I21*100 -> 52.5
A22: 1、专项收入 | B22: 10,050 | C22: 1,663 | D22: 16.5 | E22: 4,190 | F22: -2,527 | G22: -60.3 | H22: 201 | I22: 2,127 | J22: -1,926 | K22: =J22/I22*100 -> -90.6
A23: 2、行政事业性收费收入 | B23: 13,700 | C23: 3,818 | D23: 27.9 | E23: 9,485 | F23: -5,667 | G23: -59.7 | H23: 553 | I23: 4,160 | J23: -3,607 | K23: =J23/I23*100 -> -86.7
A24: 3、罚没收入 | B24: 6,200 | C24: 9,746 | D24: 157.2 | E24: 1,804 | F24: 7,942 | G24: 440.2 | H24: 263 | I24: 141 | J24: 122 | K24: =J24/I24*100 -> 86.5
A25: 4、国有资源（资产）有偿使用收入 | B25: 10,420 | C25: 5,139 | D25: 49.3 | E25: 6,757 | F25: -1,618 | G25: -23.9 | H25: 714 | I25: 2,454 | J25: -1,740 | K25: =J25/I25*100 -> -70.9
A26: 5、政府住房基金收入 | B26: 150 | C26: 106 | D26: 70.7 | E26: 290 | F26: -184 | G26: -63.4 | J26: 0
A27: 6、捐赠收入 | B27: 10,000 | C27: 11,381 | D27: 113.8 | E27: 2,505 | F27: 8,876 | G27: 354.3 | H27: 10,773 | J27: 10,773
A28: 7、其他收入 | B28: 900 | C28: 3,401 | D28: 377.9 | E28: 1,492 | F28: 1,909 | G28: 127.9 | H28: 1,485 | I28: 292 | J28: 1,193 | K28: =J28/I28*100 -> 408.6
A29: 8、国有资本经营收入 | B29: 5 | D29: 0.0
A30: 一、一般公共预算收入 | B30: =B6+B21 -> 113,975 | C30: =C6+C21 -> 60,255 | D30: 52.9 | E30: =E6+E21 -> 55,799 | F30: =C30-E30 -> 4,456 | G30: =F30/E30*100 -> 8.0 | H30: =H6+H21 -> 17,137 | I30: =I6+I21 -> 15109 | J30: =H30-I30 -> 2,028 | K30: =J30/I30*100 -> 13.4
A31: 二、政府性基金预算收入小计 | B31: 270,200 | C31: 8,008 | D31: 3.0 | E31: 66,203 | F31: =C31-E31 -> -58,195 | G31: =F31/E31*100 -> -87.9 | H31: 422 | I31: 7,426 | J31: =H31-I31 -> -7,004 | K31: =J31/I31*100 -> -94.3
A32: 其中：国有土地使用权出让收入 | B32: 260,050 | C32: 5,903 | D32: 2.3 | E32: 64,795 | F32: =C32-E32 -> -58,892 | G32: =F32/E32*100 -> -90.9 | I32: 6,887 | J32: =H32-I32 -> -6,887 | K32: =J32/I32*100 -> -100.0
A33: 三、国有资本经营收入小计 | B33: 3,500 | C33: 368 | D33: 10.5 | H33: 48 | J33: =H33-I33 -> 48
A34: 收入合计 | B34: =B30+B31+B33 -> 387,675 | C34: =C30+C31+C33 -> 68,631 | D34: 17.7 | E34: =E30+E31+E33 -> 122,002 | F34: =C34-E34 -> -53,371 | G34: =F34/E34*100 -> -43.7 | H34: =H30+H31+H33 -> 17,607 | I34: =I30+I31+I33 -> 22535 | J34: =H34-I34 -> -4,928 | K34: =J34/I34*100 -> -21.9
L35: 陆丰市财政局国库股

Sheet 2022年7月
A1: 陆 丰 市 2022 年 7 月 财 政 预 算 收 入 完 成 情 况 表
A2: 2022-07-31 | L2: 单位：万元
B3: 年 度 | C3: 累 计 | D3: 占 年 | E3: 上 年 | F3: 比上年 | G3: 比上年 | H3: 本 月 | I3: 上 年 | J3: 比上年 | K3: 比上年
A4: 收 入 项 目 | B4: 预 算 | C4: 完 成 | D4: 预 算 | E4: 同 期 | F4: 同期增 | G4: 同期增 | H4: 完 成 | I4: 同 月 | J4: 同月增 | K4: 同月增 | L4: 备 注
B5: 数 | C5: 数 | D5: % | E5: 完 成 | F5: 减额 | G5: (减)% | H5: 数 | I5: 完 成 | J5: 减额 | K5: (减)%
A6: （一）税收收入 | B6: =SUM(B7:B20) -> 62,550 | C6: =SUM(C7:C20) -> 27,344 | D6: =C6/B6*100 -> 43.7 | E6: =SUM(E7:E20) -> 33,672 | F6: =C6-E6 -> -6,328 | G6: =F6/E6*100 -> -18.8 | H6: =SUM(H7:H20) -> 2,343 | I6: =SUM(I7:I20) -> 4,396 | J6: =H6-I6 -> -2,053 | K6: =J6/I6*100 -> -46.7
A7: 1、增值税 | B7: 15,532 | C7: 6,908 | D7: 44.5 | E7: 8,419 | F7: -1,511 | G7: -17.9 | H7: =C7-'2022年6月 '!C7 -> -352 | I7: =E7-'2022年6月 '!E7 -> 1,363 | J7: -1,715 | K7: -125.8
A8: 2、企业所得税 | B8: 7,150 | C8: 3,175 | D8: 44.4 | E8: 5,400 | F8: -2,225 | G8: -41.2 | H8: =C8-'2022年6月 '!C8 -> 677 | I8: =E8-'2022年6月 '!E8 -> 749 | J8: -72 | K8: -9.6
A9: 3、个人所得税 | B9: 1,403 | C9: 389 | D9: 27.7 | E9: 706 | F9: -317 | G9: -44.9 | H9: =C9-'2022年6月 '!C9 -> 107 | I9: =E9-'2022年6月 '!E9 -> 85 | J9: 22 | K9: 25.9
A10: 4、资源税 | B10: 1,408 | C10: 52 | D10: 3.7 | E10: 619 | F10: -567 | G10: -91.6 | H10: =C10-'2022年6月 '!C10 -> 3 | I10: =E10-'2022年6月 '!E10 -> 4 | J10: -1 | K10: -25.0
A11: 5、城市维护建设税 | B11: 5,715 | C11: 2,715 | D11: 47.5 | E11: 2,999 | F11: -284 | G11: -9.5 | H11: =C11-'2022年6月 '!C11 -> 357 | I11: =E11-'2022年6月 '!E11 -> 462 | J11: -105 | K11: -22.7
A12: 6、房产税 | B12: 1,839 | C12: 1,535 | D12: 83.5 | E12: 223 | F12: 1,312 | G12: 588.3 | H12: =C12-'2022年6月 '!C12 -> 31 | I12: =E12-'2022年6月 '!E12 -> 10 | J12: 21 | K12: 210.0
A13: 7、印花税 | B13: 1,785 | C13: 1,644 | D13: 92.1 | E13: 929 | F13: 715 | G13: 77.0 | H13: =C13-'2022年6月 '!C13 -> 432 | I13: =E13-'2022年6月 '!E13 -> 143 | J13: 289 | K13: 202.1
A14: 8、城镇土地使用税 | B14: 1,905 | C14: 569 | D14: 29.9 | E14: 194 | F14: 375 | G14: 193.3 | H14: =C14-'2022年6月 '!C14 -> 20 | I14: =E14-'2022年6月 '!E14 -> 2 | J14: 18 | K14: 900.0
A15: 9、土地增值税 | B15: 7,005 | C15: 3,796 | D15: 54.2 | E15: 3,165 | F15: 631 | G15: 19.9 | H15: =C15-'2022年6月 '!C15 -> 313 | I15: =E15-'2022年6月 '!E15 -> 233 | J15: 80 | K15: 34.3
A16: 10、车船使用税 | B16: 1,714 | C16: 975 | D16: 56.9 | E16: 847 | F16: 128 | G16: 15.1 | H16: =C16-'2022年6月 '!C16 -> 127 | I16: =E16-'2022年6月 '!E16 -> 118 | J16: 9 | K16: 7.6
A17: 11、环保税 | B17: 135 | C17: 162 | D17: 120.0 | E17: 101 | F17: 61 | G17: 60.4 | H17: =C17-'2022年6月 '!C17 -> 30 | I17: =E17-'2022年6月 '!E17 -> 37 | J17: -7 | K17: -18.9
A18: 12、耕地占用税 | B18: 5,752 | C18: 2,039 | D18: 35.4 | E18: 3,136 | F18: -1,097 | G18: -35.0 | H18: =C18-'2022年6月 '!C18 -> 92 | I18: =E18-'2022年6月 '!E18 -> 29 | J18: 63 | K18: =J18/I18*100 -> 217.2
A19: 13、契 税 | B19: 11,206 | C19: 3,371 | D19: 30.1 | E19: 6,933 | F19: -3,562 | G19: -51.4 | H19: =C19-'2022年6月 '!C19 -> 492 | I19: =E19-'2022年6月 '!E19 -> 1,161 | J19: -669 | K19: =J19/I19*100 -> -57.6
A20: 14、其他税收收入 | B20: 1 | C20: 14 | D20: 1400.0 | E20: 1 | F20: 13 | G20: 1,300.0 | H20: =C20-'2022年6月 '!C20 -> 14 | I20: =E20-'2022年6月 '!E20 -> 0
A21: （二）非税收入 | B21: =SUM(B22:B29) -> 51,425 | C21: =SUM(C22:C29) -> 36,129 | D21: 70.3 | E21: =E22+E23+E24+E25+E26+E27+E28+E29 -> 27,198 | F21: 8,931 | G21: 32.8 | H21: =H22+H23+H24+H25+H26+H27+H28+H29 -> 875 | I21: =I22+I23+I24+I25+I26+I27+I28+I29 -> 675 | J21: =H21-I21 -> 200 | K21: =J21/I21*100 -> 29.6
A22: 1、专项收入 | B22: 10,050 | C22: 1,910 | D22: 19.0 | E22: 4,532 | F22: -2,622 | G22: -57.9 | H22: =C22-'2022年6月 '!C22 -> 247 | I22: =E22-'2022年6月 '!E22 -> 342 | J22: -95 | K22: =J22/I22*100 -> -27.8
A23: 2、行政事业性收费收入 | B23: 13,700 | C23: 4,444 | D23: 32.4 | E23: 9,742 | F23: -5,298 | G23: -54.4 | H23: =C23-'2022年6月 '!C23 -> 626 | I23: =E23-'2022年6月 '!E23 -> 257 | J23: 369 | K23: =J23/I23*100 -> 143.6
A24: 3、罚没收入 | B24: 6,200 | C24: 9,745 | D24: 157.2 | E24: 1,804 | F24: 7,941 | G24: 440.2 | H24: =C24-'2022年6月 '!C24 -> -1 | I24: =E24-'2022年6月 '!E24 -> 0 | J24: -1
A25: 4、国有资源（资产）有偿使用收入 | B25: 10,420 | C25: 5,144 | D25: 49.4 | E25: 7,028 | F25: -1,884 | G25: -26.8 | H25: =C25-'2022年6月 '!C25 -> 5 | I25: =E25-'2022年6月 '!E25 -> 271 | J25: -266 | K25: =J25/I25*100 -> -98.2
A26: 5、政府住房基金收入 | B26: 150 | C26: 106 | D26: 70.7 | E26: 290 | F26: -184 | G26: -63.4 | H26: 0 | I26: =E26-'2022年6月 '!E26 -> 0 | J26: 0
A27: 6、捐赠收入 | B27: 10,000 | C27: 11,380 | D27: 113.8 | E27: 2,535 | F27: 8,845 | G27: 348.9 | H27: =C27-'2022年6月 '!C27 -> -1 | I27: =E27-'2022年6月 '!E27 -> 30 | J27: -31 | K27: =J27/I27*100 -> -103.3
A28: 7、其他收入 | B28: 900 | C28: 3,400 | D28: 377.8 | E28: 1,267 | F28: 2,133 | G28: 168.4 | H28: =C28-'2022年6月 '!C28 -> -1 | I28: =E28-'2022年6月 '!E28 -> -225 | J28: 224 | K28: =J28/I28*100 -> -99.6
A29: 8、国有资本经营收入 | B29: 5 | D29: 0.0 | I29: =E29-'2022年6月 '!E29 -> 0
A30: 一、一般公共预算收入 | B30: =B6+B21 -> 113,975 | C30: =C6+C21 -> 63,473 | D30: 55.7 | E30: =E6+E21 -> 60,870 | F30: =C30-E30 -> 2,603 | G30: =F30/E30*100 -> 4.3 | H30: =H6+H21 -> 3,218 | I30: =I6+I21 -> 5071 | J30: =H30-I30 -> -1,853 | K30: =J30/I30*100 -> -36.5
A31: 二、政府性基金预算收入小计 | B31: 270,200 | C31: 8,536 | D31: 3.2 | E31: 76,651 | F31: =C31-E31 -> -68,115 | G31: =F31/E31*100 -> -88.9 | H31: =C31-'2022年6月 '!C31 -> 528 | I31: =E31-'2022年6月 '!E31 -> 10,448 | J31: =H31-I31 -> -9,920 | K31: =J31/I31*100 -> -94.9
A32: 其中：国有土地使用权出让收入 | B32: 260,050 | C32: 6,337 | D32: 2.4 | E32: 75,153 | F32: =C32-E32 -> -68,816 | G32: =F32/E32*100 -> -91.6 | H32: =C32-'2022年6月 '!C32 -> 434 | I32: =E32-'2022年6月 '!E32 -> 10,358 | J32: =H32-I32 -> -9,924 | K32: =J32/I32*100 -> -95.8
A33: 三、国有资本经营收入小计 | B33: 3,500 | C33: 368 | D33: 10.5 | E33: 0 | F33: =C33-E33 -> 368 | H33: 0 | J33: =H33-I33 -> 0
A34: 收入合计 | B34: =B30+B31+B33 -> 387,675 | C34: =C30+C31+C33 -> 72,377 | D34: 18.7 | E34: =E30+E31+E33 -> 137,521 | F34: =C34-E34 -> -65,144 | G34: =F34/E34*100 -> -47.4 | H34: =H30+H31+H33 -> 3,746 | I34: =I30+I31+I33 -> 15519 | J34: =H34-I34 -> -11,773 | K34: =J34/I34*100 -> -75.9
L35: 陆丰市财政局国库股

Sheet 2022年8月
A1: 陆 丰 市 2022 年 8 月 财 政 预 算 收 入 完 成 情 况 表
A2: 2022-08-31 | L2: 单位：万元
B3: 年 度 | C3: 累 计 | D3: 占 年 | E3: 上 年 | F3: 比上年 | G3: 比上年 | H3: 本 月 | I3: 上 年 | J3: 比上年 | K3: 比上年
A4: 收 入 项 目 | B4: 预 算 | C4: 完 成 | D4: 预 算 | E4: 同 期 | F4: 同期增 | G4: 同期增 | H4: 完 成 | I4: 同 月 | J4: 同月增 | K4: 同月增 | L4: 备 注
B5: 数 | C5: 数 | D5: % | E5: 完 成 | F5: 减额 | G5: (减)% | H5: 数 | I5: 完 成 | J5: 减额 | K5: (减)%
A6: （一）税收收入 | B6: =SUM(B7:B20) -> 62,550 | C6: =SUM(C7:C20) -> 29,829 | D6: =C6/B6*100 -> 47.7 | E6: =SUM(E7:E20) -> 36,847 | F6: =C6-E6 -> -7,018 | G6: =F6/E6*100 -> -19.0 | H6: =SUM(H7:H20) -> 2,485 | I6: =SUM(I7:I20) -> 3,175 | J6: =H6-I6 -> -690 | K6: =J6/I6*100 -> -21.7
A7: 1、增值税 | B7: 15,532 | C7: 8,039 | D7: 51.8 | E7: 9,095 | F7: -1,056 | G7: -11.6 | H7: 1,131 | I7: 676 | J7: 455 | K7: 67.3
A8: 2、企业所得税 | B8: 7,150 | C8: 3,177 | D8: 44.4 | E8: 5,409 | F8: -2,232 | G8: -41.3 | H8: 2 | I8: 9 | J8: -7 | K8: -77.8
A9: 3、个人所得税 | B9: 1,403 | C9: 467 | D9: 33.3 | E9: 796 | F9: -329 | G9: -41.3 | H9: 78 | I9: 90 | J9: -12 | K9: -13.3
A10: 4、资源税 | B10: 1,408 | C10: 53 | D10: 3.8 | E10: 635 | F10: -582 | G10: -91.7 | H10: 1 | I10: 16 | J10: -15 | K10: -93.8
A11: 5、城市维护建设税 | B11: 5,715 | C11: 3,044 | D11: 53.3 | E11: 3,361 | F11: -317 | G11: -9.4 | H11: 329 | I11: 362 | J11: -33 | K11: -9.1
A12: 6、房产税 | B12: 1,839 | C12: 1,579 | D12: 85.9 | E12: 238 | F12: 1,341 | G12: 563.4 | H12: 44 | I12: 15 | J12: 29 | K12: 193.3
A13: 7、印花税 | B13: 1,785 | C13: 1,745 | D13: 97.8 | E13: 1,109 | F13: 636 | G13: 57.3 | H13: 101 | I13: 180 | J13: -79 | K13: -43.9
A14: 8、城镇土地使用税 | B14: 1,905 | C14: 595 | D14: 31.2 | E14: 207 | F14: 388 | G14: 187.4 | H14: 26 | I14: 13 | J14: 13 | K14: 100.0
A15: 9、土地增值税 | B15: 7,005 | C15: 3,926 | D15: 56.0 | E15: 4,014 | F15: -88 | G15: -2.2 | H15: 130 | I15: 849 | J15: -719 | K15: -84.7
A16: 10、车船使用税 | B16: 1,714 | C16: 1,102 | D16: 64.3 | E16: 968 | F16: 134 | G16: 13.8 | H16: 127 | I16: 121 | J16: 6 | K16: 5.0
A17: 11、环保税 | B17: 135 | C17: 162 | D17: 120.0 | E17: 102 | F17: 60 | G17: 58.8 | I17: 1 | J17: -1 | K17: -100.0
A18: 12、耕地占用税 | B18: 5,752 | C18: 2,039 | D18: 35.4 | E18: 3,136 | F18: -1,097 | G18: -35.0 | J18: 0
A19: 13、契 税 | B19: 11,206 | C19: 3,887 | D19: 34.7 | E19: 7,776 | F19: -3,889 | G19: -50.0 | H19: 516 | I19: 843 | J19: -327 | K19: =J19/I19*100 -> -38.8
A20: 14、其他税收收入 | B20: 1 | C20: 14 | D20: 1400.0 | E20: 1 | F20: 13 | G20: 1,300.0
A21: （二）非税收入 | B21: =SUM(B22:B29) -> 51,425 | C21: =SUM(C22:C29) -> 42,032 | D21: 81.7 | E21: =E22+E23+E24+E25+E26+E27+E28+E29 -> 32,960 | F21: 9,072 | G21: 27.5 | H21: =H22+H23+H24+H25+H26+H27+H28+H29 -> 5,903 | I21: =I22+I23+I24+I25+I26+I27+I28+I29 -> 5762 | J21: =H21-I21 -> 141 | K21: =J21/I21*100 -> 2.4
A22: 1、专项收入 | B22: 10,050 | C22: 2,095 | D22: 20.8 | E22: 4,805 | F22: -2,710 | G22: -56.4 | H22: 185 | I22: 273 | J22: -88 | K22: =J22/I22*100 -> -32.2
A23: 2、行政事业性收费收入 | B23: 13,700 | C23: 5,491 | D23: 40.1 | E23: 10,600 | F23: -5,109 | G23: -48.2 | H23: 1,047 | I23: 858 | J23: 189 | K23: =J23/I23*100 -> 22.0
A24: 3、罚没收入 | B24: 6,200 | C24: 10,295 | D24: 166.0 | E24: 2,087 | F24: 8,208 | G24: 393.3 | H24: 550 | I24: 283 | J24: 267 | K24: =J24/I24*100 -> 94.3
A25: 4、国有资源（资产）有偿使用收入 | B25: 10,420 | C25: 5,587 | D25: 53.6 | E25: 7,145 | F25: -1,558 | G25: -21.8 | H25: 443 | I25: 117 | J25: 326 | K25: =J25/I25*100 -> 278.6
A26: 5、政府住房基金收入 | B26: 150 | C26: 106 | D26: 70.7 | E26: 290 | F26: -184 | G26: -63.4 | J26: 0
A27: 6、捐赠收入 | B27: 10,000 | C27: 14,557 | D27: 145.6 | E27: 6,685 | F27: 7,872 | G27: 117.8 | H27: 3,177 | I27: 4,150 | J27: -973 | K27: =J27/I27*100 -> -23.4
A28: 7、其他收入 | B28: 900 | C28: 3,901 | D28: 433.4 | E28: 1,348 | F28: 2,553 | G28: 189.4 | H28: 501 | I28: 81 | J28: 420 | K28: 518.5
A29: 8、国有资本经营收入 | B29: 5 | D29: 0.0
A30: 一、一般公共预算收入 | B30: =B6+B21 -> 113,975 | C30: =C6+C21 -> 71,861 | D30: 63.0 | E30: =E6+E21 -> 69,807 | F30: =C30-E30 -> 2,054 | G30: =F30/E30*100 -> 2.9 | H30: =H6+H21 -> 8,388 | I30: =I6+I21 -> 8937 | J30: =H30-I30 -> -549 | K30: -6.1
A31: 二、政府性基金预算收入小计 | B31: 270,200 | C31: 12,272 | D31: 4.5 | E31: 81,031 | F31: =C31-E31 -> -68,759 | G31: =F31/E31*100 -> -84.9 | H31: 3,736 | I31: 4,380 | J31: =H31-I31 -> -644 | K31: -14.7
A32: 其中：国有土地使用权出让收入 | B32: 260,050 | C32: 9,984 | D32: 3.8 | E32: 78,552 | F32: =C32-E32 -> -68,568 | G32: =F32/E32*100 -> -87.3 | H32: 3,647 | I32: 5,338 | J32: =H32-I32 -> -1,691 | K32: -31.7
A33: 三、国有资本经营收入小计 | B33: 3,500 | C33: 368 | D33: 10.5 | E33: 0 | F33: =C33-E33 -> 368 | H33: 0 | J33: =H33-I33 -> 0
A34: 收入合计 | B34: =B30+B31+B33 -> 387,675 | C34: =C30+C31+C33 -> 84,501 | D34: 21.8 | E34: =E30+E31+E33 -> 150,838 | F34: =C34-E34 -> -66,337 | G34: =F34/E34*100 -> -44.0 | H34: =H30+H31+H33 -> 12,124 | I34: =I30+I31+I33 -> 13317 | J34: =H34-I34 -> -1,193 | K34: =J34/I34*100 -> -9.0
L35: 陆丰市财政局国库股

Sheet 2022年9月
A1: 陆 丰 市 2022 年 9 月 财 政 预 算 收 入 完 成 情 况 表
A2: 2022-09-30 | L2: 单位：万元
B3: 年 度 | C3: 累 计 | D3: 占 年 | E3: 上 年 | F3: 比上年 | G3: 比上年 | H3: 本 月 | I3: 上 年 | J3: 比上年 | K3: 比上年
A4: 收 入 项 目 | B4: 预 算 | C4: 完 成 | D4: 预 算 | E4: 同 期 | F4: 同期增 | G4: 同期增 | H4: 完 成 | I4: 同 月 | J4: 同月增 | K4: 同月增 | L4: 备 注
B5: 数 | C5: 数 | D5: % | E5: 完 成 | F5: 减额 | G5: (减)% | H5: 数 | I5: 完 成 | J5: 减额 | K5: (减)%
A6: （一）税收收入 | B6: =SUM(B7:B20) -> 62,550 | C6: =SUM(C7:C20) -> 30,410 | D6: =C6/B6*100 -> 48.6 | E6: =SUM(E7:E20) -> 41,245 | F6: =C6-E6 -> -10,835 | G6: =F6/E6*100 -> -26.3 | H6: =SUM(H7:H20) -> 581 | I6: =SUM(I7:I20) -> 4,398 | J6: =H6-I6 -> -3,817 | K6: =J6/I6*100 -> -86.8
A7: 1、增值税 | B7: 15,532 | C7: 6,706 | D7: 43.2 | E7: 10,269 | F7: -3,563 | G7: -34.7 | H7: -1,333 | I7: 1,174 | J7: -2,507 | K7: -213.5
A8: 2、企业所得税 | B8: 7,150 | C8: 3,213 | D8: 44.9 | E8: 5,423 | F8: -2,210 | G8: -40.8 | H8: 36 | I8: 14 | J8: 22 | K8: 157.1
A9: 3、个人所得税 | B9: 1,403 | C9: 545 | D9: 38.8 | E9: 894 | F9: -349 | G9: -39.0 | H9: 78 | I9: 98 | J9: -20 | K9: -20.4
A10: 4、资源税 | B10: 1,408 | C10: 52 | D10: 3.7 | E10: 649 | F10: -597 | G10: -92.0 | H10: -1 | I10: 14 | J10: -15 | K10: -107.1
A11: 5、城市维护建设税 | B11: 5,715 | C11: 3,412 | D11: 59.7 | E11: 3,788 | F11: -376 | G11: -9.9 | H11: 368 | I11: 427 | J11: -59 | K11: -13.8
A12: 6、房产税 | B12: 1,839 | C12: 1,712 | D12: 93.1 | E12: 253 | F12: 1,459 | G12: 576.7 | H12: 133 | I12: 15 | J12: 118 | K12: 786.7
A13: 7、印花税 | B13: 1,785 | C13: 1,879 | D13: 105.3 | E13: 1,290 | F13: 589 | G13: 45.7 | H13: 134 | I13: 181 | J13: -47 | K13: -26.0
A14: 8、城镇土地使用税 | B14: 1,905 | C14: 750 | D14: 39.4 | E14: 225 | F14: 525 | G14: 233.3 | H14: 155 | I14: 18 | J14: 137 | K14: 761.1
A15: 9、土地增值税 | B15: 7,005 | C15: 4,166 | D15: 59.5 | E15: 4,952 | F15: -786 | G15: -15.9 | H15: 240 | I15: 938 | J15: -698 | K15: -74.4
A16: 10、车船使用税 | B16: 1,714 | C16: 1,234 | D16: 72.0 | E16: 1,094 | F16: 140 | G16: 12.8 | H16: 132 | I16: 126 | J16: 6 | K16: 4.8
A17: 11、环保税 | B17: 135 | C17: 163 | D17: 120.7 | E17: 101 | F17: 62 | G17: 61.4 | H17: 1 | I17: -1 | J17: 2 | K17: -200.0
A18: 12、耕地占用税 | B18: 5,752 | C18: 2,270 | D18: 39.5 | E18: 3,711 | F18: -1,441 | G18: -38.8 | H18: 231 | I18: 575 | J18: -344 | K18: -59.8
A19: 13、契 税 | B19: 11,206 | C19: 4,294 | D19: 38.3 | E19: 8,595 | F19: -4,301 | G19: -50.0 | H19: 407 | I19: 819 | J19: -412 | K19: =J19/I19*100 -> -50.3
A20: 14、其他税收收入 | B20: 1 | C20: 14 | D20: 1400.0 | E20: 1 | F20: 13 | G20: 1,300.0 | H20: 0 | J20: 0
A21: （二）非税收入 | B21: =SUM(B22:B29) -> 51,425 | C21: =SUM(C22:C29) -> 58,787 | D21: 114.3 | E21: =E22+E23+E24+E25+E26+E27+E28+E29 -> 38,254 | F21: 20,533 | G21: 53.7 | H21: =H22+H23+H24+H25+H26+H27+H28+H29 -> 16,755 | I21: =I22+I23+I24+I25+I26+I27+I28+I29 -> 5294 | J21: =H21-I21 -> 11,461 | K21: =J21/I21*100 -> 216.5
A22: 1、专项收入 | B22: 10,050 | C22: 2,371 | D22: 23.6 | E22: 5,152 | F22: -2,781 | G22: -54.0 | H22: 276 | I22: 347 | J22: -71 | K22: =J22/I22*100 -> -20.5
A23: 2、行政事业性收费收入 | B23: 13,700 | C23: 6,008 | D23: 43.9 | E23: 11,697 | F23: -5,689 | G23: -48.6 | H23: 517 | I23: 1,097 | J23: -580 | K23: =J23/I23*100 -> -52.9
A24: 3、罚没收入 | B24: 6,200 | C24: 10,961 | D24: 176.8 | E24: 2,671 | F24: 8,290 | G24: 310.4 | H24: 666 | I24: 584 | J24: 82 | K24: =J24/I24*100 -> 14.0
A25: 4、国有资源（资产）有偿使用收入 | B25: 10,420 | C25: 8,919 | D25: 85.6 | E25: 7,307 | F25: 1,612 | G25: 22.1 | H25: 3,332 | I25: 162 | J25: 3,170 | K25: =J25/I25*100 -> 1,956.8
A26: 5、政府住房基金收入 | B26: 150 | C26: 250 | D26: 166.7 | E26: 290 | F26: -40 | G26: -13.8 | H26: 144 | J26: 144
A27: 6、捐赠收入 | B27: 10,000 | C27: 24,931 | D27: 249.3 | E27: 9,685 | F27: 15,246 | G27: 157.4 | H27: 10,374 | I27: 3,000 | J27: 7,374 | K27: =J27/I27*100 -> 245.8
A28: 7、其他收入 | B28: 900 | C28: 5,347 | D28: 594.1 | E28: 1,452 | F28: 3,895 | G28: 268.3 | H28: 1,446 | I28: 104 | J28: 1,342 | K28: 1,290.4
A29: 8、国有资本经营收入 | B29: 5 | D29: 0.0
A30: 一、一般公共预算收入 | B30: =B6+B21 -> 113,975 | C30: =C6+C21 -> 89,197 | D30: 78.3 | E30: =E6+E21 -> 79,499 | F30: =C30-E30 -> 9,698 | G30: =F30/E30*100 -> 12.2 | H30: =H6+H21 -> 17,336 | I30: =I6+I21 -> 9692 | J30: =H30-I30 -> 7,644 | K30: 78.9
A31: 二、政府性基金预算收入小计 | B31: 270,200 | C31: 16,723 | D31: 6.2 | E31: 91,130 | F31: =C31-E31 -> -74,407 | G31: =F31/E31*100 -> -81.6 | H31: 4,451 | I31: 10,099 | J31: =H31-I31 -> -5,648 | K31: -55.9
A32: 其中：国有土地使用权出让收入 | B32: 260,050 | C32: 13,719 | D32: 5.3 | E32: 88,550 | F32: =C32-E32 -> -74,831 | G32: =F32/E32*100 -> -84.5 | H32: 3,735 | I32: 9,998 | J32: =H32-I32 -> -6,263 | K32: -62.6
A33: 三、国有资本经营收入小计 | B33: 3,500 | C33: 568 | D33: 16.2 | F33: =C33-E33 -> 568 | H33: 200 | J33: =H33-I33 -> 200
A34: 收入合计 | B34: =B30+B31+B33 -> 387,675 | C34: =C30+C31+C33 -> 106,488 | D34: 27.5 | E34: =E30+E31+E33 -> 170,629 | F34: =C34-E34 -> -64,141 | G34: =F34/E34*100 -> -37.6 | H34: =H30+H31+H33 -> 21,987 | I34: =I30+I31+I33 -> 19791 | J34: =H34-I34 -> 2,196 | K34: =J34/I34*100 -> 11.1
L35: 陆丰市财政局国库股

Sheet 2022年10月
A1: 陆 丰 市 2022 年 10 月 财 政 预 算 收 入 完 成 情 况 表
A2: 2022-10-31 | L2: 单位：万元
B3: 年 度 | C3: 累 计 | D3: 占 年 | E3: 上 年 | F3: 比上年 | G3: 比上年 | H3: 本 月 | I3: 上 年 | J3: 比上年 | K3: 比上年
A4: 收 入 项 目 | B4: 预 算 | C4: 完 成 | D4: 预 算 | E4: 同 期 | F4: 同期增 | G4: 同期增 | H4: 完 成 | I4: 同 月 | J4: 同月增 | K4: 同月增 | L4: 备 注
B5: 数 | C5: 数 | D5: % | E5: 完 成 | F5: 减额 | G5: (减)% | H5: 数 | I5: 完 成 | J5: 减额 | K5: (减)%
A6: （一）税收收入 | B6: =SUM(B7:B20) -> 62,550 | C6: =SUM(C7:C20) -> 33,775 | D6: =C6/B6*100 -> 54.0 | E6: =SUM(E7:E20) -> 44,558 | F6: =C6-E6 -> -10,783 | G6: =F6/E6*100 -> -24.2 | H6: =SUM(H7:H20) -> 3,365 | I6: =SUM(I7:I20) -> 3,313 | J6: =H6-I6 -> 52 | K6: =J6/I6*100 -> 1.6
A7: 1、增值税 | B7: 15,532 | C7: 8,307 | D7: 53.5 | E7: 11,416 | F7: -3,109 | G7: -27.2 | H7: 1,601 | I7: 1,147 | J7: 454 | K7: 39.6
A8: 2、企业所得税 | B8: 7,150 | C8: 3,702 | D8: 51.8 | E8: 6,121 | F8: -2,419 | G8: -39.5 | H8: 489 | I8: 698 | J8: -209 | K8: -29.9
A9: 3、个人所得税 | B9: 1,403 | C9: 635 | D9: 45.3 | E9: 938 | F9: -303 | G9: -32.3 | H9: 90 | I9: 44 | J9: 46 | K9: 104.5
A10: 4、资源税 | B10: 1,408 | C10: 52 | D10: 3.7 | E10: 651 | F10: -599 | G10: -92.0 | I10: 2 | J10: -2 | K10: -100.0
A11: 5、城市维护建设税 | B11: 5,715 | C11: 3,815 | D11: 66.8 | E11: 4,213 | F11: -398 | G11: -9.4 | H11: 403 | I11: 425 | J11: -22 | K11: -5.2
A12: 6、房产税 | B12: 1,839 | C12: 2,045 | D12: 111.2 | E12: 503 | F12: 1,542 | G12: 306.6 | H12: 333 | I12: 250 | J12: 83 | K12: 33.2
A13: 7、印花税 | B13: 1,785 | C13: 2,094 | D13: 117.3 | E13: 1,371 | F13: 723 | G13: 52.7 | H13: 215 | I13: 81 | J13: 134 | K13: 165.4
A14: 8、城镇土地使用税 | B14: 1,905 | C14: 844 | D14: 44.3 | E14: 300 | F14: 544 | G14: 181.3 | H14: 94 | I14: 75 | J14: 19 | K14: 25.3
A15: 9、土地增值税 | B15: 7,005 | C15: 3,764 | D15: 53.7 | E15: 5,431 | F15: -1,667 | G15: -30.7 | H15: -402 | I15: 479 | J15: -881 | K15: -183.9
A16: 10、车船使用税 | B16: 1,714 | C16: 1,363 | D16: 79.5 | E16: 1,219 | F16: 144 | G16: 11.8 | H16: 129 | I16: 125 | J16: 4 | K16: 3.2
A17: 11、环保税 | B17: 135 | C17: 213 | D17: 157.8 | E17: 119 | F17: 94 | G17: 79.0 | H17: 50 | I17: 18 | J17: 32 | K17: 177.8
A18: 12、耕地占用税 | B18: 5,752 | C18: 2,271 | D18: 39.5 | E18: 3,333 | F18: -1,062 | G18: -31.9 | H18: 1 | I18: -378 | J18: 379 | K18: -100.3
A19: 13、契 税 | B19: 11,206 | C19: 4,655 | D19: 41.5 | E19: 8,942 | F19: -4,287 | G19: -47.9 | H19: 361 | I19: 347 | J19: 14 | K19: =J19/I19*100 -> 4.0
A20: 14、其他税收收入 | B20: 1 | C20: 15 | D20: 1500.0 | E20: 1 | F20: 14 | G20: 1,400.0 | H20: 1 | J20: 1
A21: （二）非税收入 | B21: =SUM(B22:B29) -> 51,425 | C21: =SUM(C22:C29) -> 64,329 | D21: 125.1 | E21: =E22+E23+E24+E25+E26+E27+E28+E29 -> 38,645 | F21: 25,684 | G21: 66.5 | H21: =H22+H23+H24+H25+H26+H27+H28+H29 -> 5,542 | I21: =I22+I23+I24+I25+I26+I27+I28+I29 -> 391 | J21: 5,151 | K21: =J21/I21*100 -> 1,317.4
A22: 1、专项收入 | B22: 10,050 | C22: 2,701 | D22: 26.9 | E22: 5,470 | F22: -2,769 | G22: -50.6 | H22: 330 | I22: 318 | J22: 12 | K22: =J22/I22*100 -> 3.8
A23: 2、行政事业性收费收入 | B23: 13,700 | C23: 6,117 | D23: 44.6 | E23: 11,713 | F23: -5,596 | G23: -47.8 | H23: 109 | I23: 16 | J23: 93 | K23: =J23/I23*100 -> 581.3
A24: 3、罚没收入 | B24: 6,200 | C24: 15,017 | D24: 242.2 | E24: 2,671 | F24: 12,346 | G24: 462.2 | H24: 4,056 | J24: 4,056 | K24: =J24/I24*100 -> 
A25: 4、国有资源（资产）有偿使用收入 | B25: 10,420 | C25: 9,527 | D25: 91.4 | E25: 7,361 | F25: 2,166 | G25: 29.4 | H25: 608 | I25: 54 | J25: 554 | K25: =J25/I25*100 -> 1,025.9
A26: 5、政府住房基金收入 | B26: 150 | C26: 250 | D26: 166.7 | E26: 290 | F26: -40 | G26: -13.8 | J26: 0
A27: 6、捐赠收入 | B27: 10,000 | C27: 25,371 | D27: 253.7 | E27: 9,685 | F27: 15,686 | G27: 162.0 | H27: 440 | J27: 440 | K27: =J27/I27*100 -> 
A28: 7、其他收入 | B28: 900 | C28: 5,346 | D28: 594.0 | E28: 1,455 | F28: 3,891 | G28: 267.4 | H28: -1 | I28: 3 | J28: -4 | K28: -133.3
A29: 8、国有资本经营收入 | B29: 5 | D29: 0.0
A30: 一、一般公共预算收入 | B30: =B6+B21 -> 113,975 | C30: =C6+C21 -> 98,104 | D30: 86.1 | E30: =E6+E21 -> 83,203 | F30: =C30-E30 -> 14,901 | G30: =F30/E30*100 -> 17.9 | H30: =H6+H21 -> 8,907 | I30: =I6+I21 -> 3704 | J30: =H30-I30 -> 5,203 | K30: 140.5
A31: 二、政府性基金预算收入小计 | B31: 270,200 | C31: 19,437 | D31: 7.2 | E31: 96,366 | F31: =C31-E31 -> -76,929 | G31: =F31/E31*100 -> -79.8 | H31: 2,714 | I31: 5,236 | J31: =H31-I31 -> -2,522 | K31: -48.2
A32: 其中：国有土地使用权出让收入 | B32: 260,050 | C32: 16,310 | D32: 6.3 | E32: 92,710 | F32: =C32-E32 -> -76,400 | G32: =F32/E32*100 -> -82.4 | H32: 2,591 | I32: 4,160 | J32: =H32-I32 -> -1,569 | K32: -37.7
A33: 三、国有资本经营收入小计 | B33: 3,500 | C33: 568 | D33: 16.2 | E33: 500 | F33: =C33-E33 -> 68 | G33: =F33/E33*100 -> 13.6 | I33: 500 | J33: =H33-I33 -> -500
A34: 收入合计 | B34: =B30+B31+B33 -> 387,675 | C34: =C30+C31+C33 -> 118,109 | D34: 30.5 | E34: =E30+E31+E33 -> 180,069 | F34: =C34-E34 -> -61,960 | G34: =F34/E34*100 -> -34.4 | H34: =H30+H31+H33 -> 11,621 | I34: =I30+I31+I33 -> 9440 | J34: =H34-I34 -> 2,181 | K34: =J34/I34*100 -> 23.1
L35: 陆丰市财政局国库股

Sheet 2022年11月
A1: 陆 丰 市 2022 年 11月 财 政 预 算 收 入 完 成 情 况 表
A2: 2022-11-30 | L2: 单位：万元
B3: 年 度 | C3: 累 计 | D3: 占 年 | E3: 上 年 | F3: 比上年 | G3: 比上年 | H3: 本 月 | I3: 上 年 | J3: 比上年 | K3: 比上年
A4: 收 入 项 目 | B4: 预 算 | C4: 完 成 | D4: 预 算 | E4: 同 期 | F4: 同期增 | G4: 同期增 | H4: 完 成 | I4: 同 月 | J4: 同月增 | K4: 同月增 | L4: 备 注
B5: 数 | C5: 数 | D5: % | E5: 完 成 | F5: 减额 | G5: (减)% | H5: 数 | I5: 完 成 | J5: 减额 | K5: (减)%
A6: （一）税收收入 | B6: =SUM(B7:B20) -> 62,550 | C6: =SUM(C7:C20) -> 37,302 | D6: =C6/B6*100 -> 59.6 | E6: =SUM(E7:E20) -> 47,672 | F6: =C6-E6 -> -10,370 | G6: =F6/E6*100 -> -21.8 | H6: 3,527 | I6: =SUM(I7:I20) -> 3,114 | J6: =H6-I6 -> 413 | K6: =J6/I6*100 -> 13.3
A7: 1、增值税 | B7: 15,532 | C7: 9,577 | D7: 61.7 | E7: 12,371 | F7: -2,794 | G7: -22.6 | H7: 1,270 | I7: 955 | J7: 315 | K7: 33.0
A8: 2、企业所得税 | B8: 7,150 | C8: 3,728 | D8: 52.1 | E8: 6,151 | F8: -2,423 | G8: -39.4 | H8: 26 | I8: 30 | J8: -4 | K8: -13.3
A9: 3、个人所得税 | B9: 1,403 | C9: 737 | D9: 52.5 | E9: 1,027 | F9: -290 | G9: -28.2 | H9: 102 | I9: 89 | J9: 13 | K9: 14.6
A10: 4、资源税 | B10: 1,408 | C10: 152 | D10: 10.8 | E10: 731 | F10: -579 | G10: -79.2 | H10: 100 | I10: 80 | J10: 20 | K10: 25.0
A11: 5、城市维护建设税 | B11: 5,715 | C11: 4,155 | D11: 72.7 | E11: 4,554 | F11: -399 | G11: -8.8 | H11: 340 | I11: 341 | J11: -1 | K11: -0.3
A12: 6、房产税 | B12: 1,839 | C12: 2,544 | D12: 138.3 | E12: 786 | F12: 1,758 | G12: 223.7 | H12: 499 | I12: 283 | J12: 216 | K12: 76.3
A13: 7、印花税 | B13: 1,785 | C13: 2,291 | D13: 128.3 | E13: 1,428 | F13: 863 | G13: 60.4 | H13: 197 | I13: 57 | J13: 140 | K13: 245.6
A14: 8、城镇土地使用税 | B14: 1,905 | C14: 1,094 | D14: 57.4 | E14: 458 | F14: 636 | G14: 138.9 | H14: 250 | I14: 158 | J14: 92 | K14: 58.2
A15: 9、土地增值税 | B15: 7,005 | C15: 3,981 | D15: 56.8 | E15: 5,783 | F15: -1,802 | G15: -31.2 | H15: 217 | I15: 352 | J15: -135 | K15: -38.4
A16: 10、车船使用税 | B16: 1,714 | C16: 1,502 | D16: 87.6 | E16: 1,348 | F16: 154 | G16: 11.4 | H16: 139 | I16: 129 | J16: 10 | K16: 7.8
A17: 11、环保税 | B17: 135 | C17: 217 | D17: 160.7 | E17: 119 | F17: 98 | G17: 82.4 | H17: 4 | I17: 0 | J17: 4
A18: 12、耕地占用税 | B18: 5,752 | C18: 2,137 | D18: 37.2 | E18: 3,640 | F18: -1,503 | G18: -41.3 | H18: -134 | I18: 307 | J18: -441 | K18: -143.6
A19: 13、契 税 | B19: 11,206 | C19: 5,172 | D19: 46.2 | E19: 9,275 | F19: -4,103 | G19: -44.2 | H19: 517 | I19: 333 | J19: 184 | K19: =J19/I19*100 -> 55.3
A20: 14、其他税收收入 | B20: 1 | C20: 15 | D20: 1500.0 | E20: 1 | F20: 14 | G20: 1,400.0 | H20: 0 | I20: 0 | J20: 0
A21: （二）非税收入 | B21: =SUM(B22:B29) -> 51,425 | C21: =SUM(C22:C29) -> 69,452 | D21: 135.1 | E21: =E22+E23+E24+E25+E26+E27+E28+E29 -> 39,847 | F21: 29,605 | G21: 74.3 | H21: =H22+H23+H24+H25+H26+H27+H28+H29 -> 5,123 | I21: =I22+I23+I24+I25+I26+I27+I28+I29 -> 1202 | J21: 3,921 | K21: =J21/I21*100 -> 326.2
A22: 1、专项收入 | B22: 10,050 | C22: 3,186 | D22: 31.7 | E22: 5,865 | F22: -2,679 | G22: -45.7 | H22: 485 | I22: 395 | J22: 90 | K22: =J22/I22*100 -> 22.8
A23: 2、行政事业性收费收入 | B23: 13,700 | C23: 6,978 | D23: 50.9 | E23: 11,448 | F23: -4,470 | G23: -39.0 | H23: 861 | I23: -265 | J23: 1,126 | K23: =J23/I23*100 -> -424.9
A24: 3、罚没收入 | B24: 6,200 | C24: 18,767 | D24: 302.7 | E24: 3,200 | F24: 15,567 | G24: 486.5 | H24: 3,750 | I24: 529 | J24: 3,221 | K24: =J24/I24*100 -> 608.9
A25: 4、国有资源（资产）有偿使用收入 | B25: 10,420 | C25: 9,554 | D25: 91.7 | E25: 7,393 | F25: 2,161 | G25: 29.2 | H25: 27 | I25: 32 | J25: -5 | K25: =J25/I25*100 -> -15.6
A26: 5、政府住房基金收入 | B26: 150 | C26: 250 | D26: 166.7 | E26: 290 | F26: -40 | G26: -13.8 | H26: 0 | I26: 0 | J26: 0
A27: 6、捐赠收入 | B27: 10,000 | C27: 25,371 | D27: 253.7 | E27: 10,185 | F27: 15,186 | G27: 149.1 | H27: 0 | I27: 500 | J27: -500 | K27: =J27/I27*100 -> -100.0
A28: 7、其他收入 | B28: 900 | C28: 5,346 | D28: 594.0 | E28: 1,461 | F28: 3,885 | G28: 265.9 | H28: 0 | I28: 6 | J28: -6 | K28: =J28/I28*100 -> -100.0
A29: 8、国有资本经营收入 | B29: 5 | C29: 0 | D29: 0.0 | E29: 5 | F29: -5 | G29: -100.0 | H29: 0 | I29: 5 | J29: -5 | K29: -100.0
A30: 一、一般公共预算收入 | B30: =B6+B21 -> 113,975 | C30: =C6+C21 -> 106,754 | D30: 93.7 | E30: =E6+E21 -> 87,519 | F30: =C30-E30 -> 19,235 | G30: =F30/E30*100 -> 22.0 | H30: =H6+H21 -> 8,650 | I30: =I6+I21 -> 4316 | J30: =H30-I30 -> 4,334 | K30: 100.4
A31: 二、政府性基金预算收入小计 | B31: 270,200 | C31: 27,060 | D31: 10.0 | E31: 102,064 | F31: =C31-E31 -> -75,004 | G31: =F31/E31*100 -> -73.5 | H31: 7,623 | I31: 5,698 | J31: =H31-I31 -> 1,925 | K31: 33.8
A32: 其中：国有土地使用权出让收入 | B32: 260,050 | C32: 23,847 | D32: 9.2 | E32: 96,579 | F32: =C32-E32 -> -72,732 | G32: =F32/E32*100 -> -75.3 | H32: 7,537 | I32: 3,869 | J32: =H32-I32 -> 3,668 | K32: 94.8
A33: 三、国有资本经营收入小计 | B33: 3,500 | C33: 764 | D33: 21.8 | E33: 500 | F33: =C33-E33 -> 264 | G33: =F33/E33*100 -> 52.8 | H33: 196 | I33: 0 | J33: =H33-I33 -> 196
A34: 收入合计 | B34: =B30+B31+B33 -> 387,675 | C34: =C30+C31+C33 -> 134,578 | D34: 34.7 | E34: =E30+E31+E33 -> 190,083 | F34: =C34-E34 -> -55,505 | G34: =F34/E34*100 -> -29.2 | H34: =H30+H31+H33 -> 16,469 | I34: =I30+I31+I33 -> 10014 | J34: =H34-I34 -> 6,455 | K34: =J34/I34*100 -> 64.5
L35: 陆丰市财政局国库股

Sheet 2022年12月
A1: 陆 丰 市 2022 年 12 月 财 政 预 算 收 入 完 成 情 况 表
A2: 2022-12-31 | L2: 单位：万元
B3: 年 度 | C3: 累 计 | D3: 占 年 | E3: 上 年 | F3: 比上年 | G3: 比上年 | H3: 本 月 | I3: 上 年 | J3: 比上年 | K3: 比上年
A4: 收 入 项 目 | B4: 预 算 | C4: 完 成 | D4: 预 算 | E4: 同 期 | F4: 同期增 | G4: 同期增 | H4: 完 成 | I4: 同 月 | J4: 同月增 | K4: 同月增 | L4: 备 注
B5: 数 | C5: 数 | D5: % | E5: 完 成 | F5: 减额 | G5: (减)% | H5: 数 | I5: 完 成 | J5: 减额 | K5: (减)%
A6: （一）税收收入 | B6: =SUM(B7:B20) -> 43,775 | C6: =SUM(C7:C20) -> 43,303 | D6: =C6/B6*100 -> 98.9 | E6: =SUM(E7:E20) -> 54,393 | F6: =C6-E6 -> -11,090 | G6: =F6/E6*100 -> -20.4 | H6: =SUM(H7:H20) -> 6,001 | I6: =SUM(I7:I20) -> 6,721 | J6: =H6-I6 -> -720 | K6: =J6/I6*100 -> -10.7
A7: 1、增值税 | B7: 10,830 | C7: 10,782 | D7: 99.6 | E7: 13,506 | F7: -2,724 | G7: -20.2 | H7: =C7-'2022年11月'!C7 -> 1,205 | I7: =E7-'2022年11月'!E7 -> 1,135 | J7: 70 | K7: 6.2
A8: 2、企业所得税 | B8: 3,810 | C8: 3,790 | D8: 99.5 | E8: 6,217 | F8: -2,427 | G8: -39.0 | H8: =C8-'2022年11月'!C8 -> 62 | I8: =E8-'2022年11月'!E8 -> 66 | J8: -4 | K8: -6.1
A9: 3、个人所得税 | B9: 873 | C9: 863 | D9: 98.9 | E9: 1,220 | F9: -357 | G9: -29.3 | H9: =C9-'2022年11月'!C9 -> 126 | I9: =E9-'2022年11月'!E9 -> 193 | J9: -67 | K9: -34.7
A10: 4、资源税 | B10: 151 | C10: 152 | D10: 100.7 | E10: 1,224 | F10: -1,072 | G10: -87.6 | I10: =E10-'2022年11月'!E10 -> 493 | J10: -493 | K10: -100.0
A11: 5、城市维护建设税 | B11: 4,680 | C11: 4,567 | D11: 97.6 | E11: 4,971 | F11: -404 | G11: -8.1 | H11: =C11-'2022年11月'!C11 -> 412 | I11: =E11-'2022年11月'!E11 -> 417 | J11: -5 | K11: -1.2
A12: 6、房产税 | B12: 4,436 | C12: 4,348 | D12: 98.0 | E12: 1,599 | F12: 2,749 | G12: 171.9 | H12: =C12-'2022年11月'!C12 -> 1,804 | I12: =E12-'2022年11月'!E12 -> 813 | J12: 991 | K12: 121.9
A13: 7、印花税 | B13: 2,433 | C13: 2,399 | D13: 98.6 | E13: 1,552 | F13: 847 | G13: 54.6 | H13: =C13-'2022年11月'!C13 -> 108 | I13: =E13-'2022年11月'!E13 -> 124 | J13: -16 | K13: -12.9
A14: 8、城镇土地使用税 | B14: 2,499 | C14: 2,442 | D14: 97.7 | E14: 1,657 | F14: 785 | G14: 47.4 | H14: =C14-'2022年11月'!C14 -> 1,348 | I14: =E14-'2022年11月'!E14 -> 1,199 | J14: 149 | K14: 12.4
A15: 9、土地增值税 | B15: 4,416 | C15: 4,347 | D15: 98.4 | E15: 6,091 | F15: -1,744 | G15: -28.6 | H15: =C15-'2022年11月'!C15 -> 366 | I15: =E15-'2022年11月'!E15 -> 308 | J15: 58 | K15: 18.8
A16: 10、车船使用税 | B16: 1,616 | C16: 1,646 | D16: 101.9 | E16: 1,490 | F16: 156 | G16: 10.5 | H16: =C16-'2022年11月'!C16 -> 144 | I16: =E16-'2022年11月'!E16 -> 142 | J16: 2 | K16: 1.4
A17: 11、环保税 | B17: 205 | C17: 217 | D17: 105.9 | E17: 118 | F17: 99 | G17: 83.9 | I17: =E17-'2022年11月'!E17 -> -1 | J17: 1 | K17: -100.0
A18: 12、耕地占用税 | B18: 2,243 | C18: 2,268 | D18: 101.1 | E18: 5,002 | F18: -2,734 | G18: -54.7 | H18: =C18-'2022年11月'!C18 -> 131 | I18: =E18-'2022年11月'!E18 -> 1,362 | J18: -1,231 | K18: -90.4
A19: 13、契 税 | B19: 5,568 | C19: 5,467 | D19: 98.2 | E19: 9,745 | F19: -4,278 | G19: -43.9 | H19: =C19-'2022年11月'!C19 -> 295 | I19: =E19-'2022年11月'!E19 -> 470 | J19: -175 | K19: =J19/I19*100 -> -37.2
A20: 14、其他税收收入 | B20: 15 | C20: 15 | D20: 100.0 | E20: 1 | F20: 14 | G20: 1,400.0
A21: （二）非税收入 | B21: =SUM(B22:B29) -> 70,200 | C21: =SUM(C22:C29) -> 71,097 | D21: 101.3 | E21: =E22+E23+E24+E25+E26+E27+E28+E29 -> 47,342 | F21: 23,755 | G21: 50.2 | H21: =H22+H23+H24+H25+H26+H27+H28+H29 -> 1,645 | I21: =I22+I23+I24+I25+I26+I27+I28+I29 -> 7,495 | J21: -5,850 | K21: =J21/I21*100 -> -78.1
A22: 1、专项收入 | B22: 3,455 | C22: 3,535 | D22: 102.3 | E22: 6,286 | F22: -2,751 | G22: -43.8 | H22: =C22-'2022年11月'!C22 -> 349 | I22: =E22-'2022年11月'!E22 -> 421 | J22: -72 | K22: -17.1
A23: 2、行政事业性收费收入 | B23: 7,012 | C23: 7,037 | D23: 100.4 | E23: 12,775 | F23: -5,738 | G23: -44.9 | H23: =C23-'2022年11月'!C23 -> 59 | I23: =E23-'2022年11月'!E23 -> 1,327 | J23: -1,268 | K23: -95.6
A24: 3、罚没收入 | B24: 18,356 | C24: 18,767 | D24: 102.2 | E24: 3,699 | F24: 15,068 | G24: 407.4 | I24: =E24-'2022年11月'!E24 -> 499 | J24: -499 | K24: -100.0
A25: 4、国有资源（资产）有偿使用收入 | B25: 9,460 | C25: 9,571 | D25: 101.2 | E25: 10,396 | F25: -825 | G25: -7.9 | H25: =C25-'2022年11月'!C25 -> 17 | I25: =E25-'2022年11月'!E25 -> 3,003 | J25: -2,986 | K25: -99.4
A26: 5、政府住房基金收入 | B26: 249 | C26: 250 | D26: 100.4 | E26: 568 | F26: -318 | G26: -56.0 | I26: =E26-'2022年11月'!E26 -> 278 | J26: -278 | K26: -100.0
A27: 6、捐赠收入 | B27: 26,405 | C27: 26,591 | D27: 100.7 | E27: 11,919 | F27: 14,672 | G27: 123.1 | H27: =C27-'2022年11月'!C27 -> 1,220 | I27: =E27-'2022年11月'!E27 -> 1,734 | J27: -514 | K27: -29.6
A28: 7、其他收入 | B28: 5,263 | C28: 5,346 | D28: 101.6 | E28: 1,694 | F28: 3,652 | G28: 215.6 | I28: =E28-'2022年11月'!E28 -> 233 | J28: -233 | K28: -100.0
A29: 8、国有资本经营收入 | E29: 5 | F29: -5 | G29: -100.0
A30: 一、一般公共预算收入 | B30: =B6+B21 -> 113,975 | C30: =C6+C21 -> 114,400 | D30: 100.4 | E30: =E6+E21 -> 101,735 | F30: =C30-E30 -> 12,665 | G30: =F30/E30*100 -> 12.4 | H30: =H6+H21 -> 7,646 | I30: =I6+I21 -> 14,216 | J30: =H30-I30 -> -6,570 | K30: =J30/I30*100 -> -46.2
A31: 二、政府性基金预算收入小计 | B31: 75,350 | C31: 74,482 | D31: 98.8 | E31: 117,014 | F31: =C31-E31 -> -42,532 | G31: =F31/E31*100 -> -36.3 | H31: =C31-'2022年11月'!C31 -> 47,422 | I31: =E31-'2022年11月'!E31 -> 14,950 | J31: =H31-I31 -> 32,472 | K31: 217.2
A32: 其中：国有土地使用权出让收入 | B32: 69,000 | C32: 68,915 | D32: 99.9 | E32: 110,658 | F32: =C32-E32 -> -41,743 | G32: =F32/E32*100 -> -37.7 | H32: =C32-'2022年11月'!C32 -> 45,068 | I32: =E32-'2022年11月'!E32 -> 14,079 | J32: =H32-I32 -> 30,989 | K32: 220.1
A33: 三、国有资本经营收入小计 | B33: 1,126 | C33: 1,024 | D33: 90.9 | E33: 500 | F33: =C33-E33 -> 524 | G33: =F33/E33*100 -> 104.8 | H33: =C33-'2022年11月'!C33 -> 260 | J33: =H33-I33 -> 260
A34: 收入合计 | B34: =B30+B31+B33 -> 190,451 | C34: =C30+C31+C33 -> 189,906 | D34: 99.7 | E34: =E30+E31+E33 -> 219,249 | F34: =C34-E34 -> -29,343 | G34: =F34/E34*100 -> -13.4 | H34: =H30+H31+H33 -> 55,328 | I34: =I30+I31+I33 -> 29,166 | J34: =H34-I34 -> 26,162 | K34: =J34/I34*100 -> 89.7
L35: 陆丰市财政局国库股
